fUSD/lending_fUSD_20250120
["ID","MTS","AMOUNT","RATE_DAILY","PERIOD"]
[349664228,1737363035022,-500.0,0.00019767,2]
[349664229,1737363035031,-500.0,0.00019767,2]
[349664230,1737363035040,-500.0,0.00019767,2]
[349664231,1737363035049,-613.36,0.00019767,2]
[349664232,1737363035058,-500.0,0.00019767,2]
[349664233,1737363035067,-1259.56,0.00019767,2]
[349664234,1737363035076,-500.0,0.00019767,2]
[349664235,1737363035085,-500.69772459,0.00019767,2]
[349664236,1737363035095,-500.0,0.00019767,2]
[349664237,1737363035104,-500.0,0.00019767,2]
[349664238,1737363035113,-511.38587034,0.00019767,2]
[349664239,1737363035122,-2931.87,0.00019767,2]
[349664240,1737363035131,-500.0,0.00019767,2]
[349664241,1737363035140,-500.0,0.00019767,2]
[349664242,1737363035151,-500.0,0.00019767,2]
[349664243,1737363035160,-500.0,0.00019767,2]
[349664244,1737363035170,-500.0,0.00019767,2]
[349664245,1737363035180,-500.0,0.00019767,2]
[349664246,1737363035189,-500.0,0.00019767,2]
[349664247,1737363035198,-925.65,0.00019767,2]
[349664248,1737363035207,-500.0,0.00019767,2]
[349664249,1737363035216,-500.0,0.00019767,2]
[349664250,1737363035225,-344.56080896,0.00019767,2]
[349664251,1737363035235,-500.0,0.00019767,2]
[349664252,1737363035244,-500.0,0.00019767,2]
[349664253,1737363035253,-500.0,0.00019767,2]
[349664254,1737363035262,-500.0,0.00019767,2]
[349664255,1737363035271,-500.0,0.00019767,2]
[349664256,1737363035281,-500.0,0.00019767,2]
[349664257,1737363035290,-500.0,0.00019767,2]
[349664258,1737363035299,-429.18610459,0.00019767,2]
[349664259,1737363035308,-500.0,0.00019767,2]
[349664260,1737363035317,-500.0,0.00019767,2]
[349664261,1737363035327,-500.0,0.00019767,2]
[349664262,1737363035338,-507.66938206,0.00019767,2]
[349664263,1737363035347,-500.0,0.00019767,2]
[349664264,1737363035357,-500.0,0.00019767,2]
[349664265,1737363035367,-500.0,0.00019767,2]
[349664266,1737363035377,-500.0,0.00019767,2]
[349664267,1737363035386,-516.97487283,0.00019767,2]
[349664268,1737363035395,-1195.59,0.00019767,2]
[349664269,1737363035405,-500.0,0.00019767,2]
[349664270,1737363035415,-500.0,0.00019767,2]
[349664271,1737363035424,-684.31,0.00019767,2]
[349664272,1737363035433,-500.0,0.00019767,2]
[349664273,1737363035443,-500.0,0.00019767,2]
[349664274,1737363035452,-1702.9,0.00019767,2]
[349664275,1737363035466,-524.70756169,0.00019767,2]
[349664276,1737363035483,-505.90113846,0.00019767,2]
[349664277,1737363035492,-500.0,0.00019768,2]
[349664278,1737363035501,-500.0,0.00019768,2]
[349664279,1737363035510,-500.0,0.00019768,2]
[349664280,1737363035519,-500.0,0.00019768,2]
[349664281,1737363035529,-500.0,0.00019768,2]
[349664282,1737363035538,-500.0,0.00019768,2]
[349664283,1737363035548,-500.0,0.00019768,2]
[349664284,1737363035558,-500.0,0.00019768,2]
[349664285,1737363035569,-268.48257077,0.00019768,2]
[349664286,1737363035578,-500.0,0.00019768,2]
[349664287,1737363035587,-500.0,0.00019768,2]
[349664288,1737363035596,-500.0,0.00019768,2]
[349664289,1737363035606,-500.0,0.00019768,2]
[349664290,1737363035615,-500.0,0.00019768,2]
[349664291,1737363035624,-500.0,0.00019768,2]
[349664292,1737363035633,-500.0,0.00019768,2]
[349664293,1737363035643,-563.18,0.00019768,2]
[349664294,1737363035654,-500.0,0.00019768,2]
[349664295,1737363035663,-500.0,0.00019768,2]
[349664296,1737363035672,-500.0,0.00019768,2]
[349664297,1737363035682,-500.0,0.00019768,2]
[349664298,1737363035691,-500.0,0.00019768,2]
[349664299,1737363035700,-500.0,0.00019768,2]
[349664300,1737363035710,-500.0,0.00019768,2]
[349664301,1737363035719,-687.1,0.00019768,2]
[349664302,1737363035727,-686.91,0.00019768,2]
[349664303,1737363035736,-500.0,0.00019768,2]
[349664304,1737363035745,-500.0,0.00019768,2]
[349664305,1737363035754,-500.0,0.00019768,2]
[349664306,1737363035763,-813.2,0.00019768,2]
[349664307,1737363035772,-425.17470409,0.00019768,2]
[349664308,1737363035781,-500.0,0.00019768,2]
[349664309,1737363035791,-500.0,0.00019768,2]
[349664310,1737363035800,-500.0,0.00019768,2]
[349664311,1737363035809,-837.69,0.00019768,2]
[349664312,1737363035818,-630.4,0.00019768,2]
[349664313,1737363035827,-700.25,0.00019768,2]
[349664314,1737363035836,-500.0,0.00019768,2]
[349664315,1737363035845,-596.17908673,0.00019768,2]
[349664316,1737363035854,-638.14,0.00019768,2]
[349664317,1737363035864,-500.0,0.00019768,2]
[349664318,1737363035873,-500.0,0.00019768,2]
[349664319,1737363035882,-500.0,0.00019768,2]
[349664320,1737363035891,-618.13750093,0.00019768,2]
[349664321,1737363035905,-10.53249907,0.00019768,2]
[349664322,1737363035914,-626.22,0.00019768,2]
[349664323,1737363035923,-503.54532485,0.00019768,2]
[349664324,1737363035933,-500.0,0.00019768,2]
[349664325,1737363035942,-510.0116926,0.00019768,2]
[349664326,1737363035952,-518.59,0.00019768,2]
[349664327,1737363035961,-500.0,0.00019768,2]
[349664328,1737363035970,-500.0,0.00019768,2]
[349664329,1737363035979,-500.0,0.00019768,2]
[349664330,1737363035988,-500.0,0.00019768,2]
[349664331,1737363035997,-500.0,0.00019768,2]
[349664332,1737363036006,-500.0,0.00019768,2]
[349664333,1737363036015,-2016.76,0.00019768,2]
[349664334,1737363036024,-1091.51,0.00019768,2]
[349664335,1737363036033,-2229.3,0.00019768,2]
[349664336,1737363036042,-500.0,0.00019768,2]
[349664337,1737363036051,-500.0,0.00019768,2]
[349664338,1737363036060,-500.0,0.00019768,2]
[349664339,1737363036069,-500.0,0.00019768,2]
[349664340,1737363036078,-2569.33315823,0.00019768,2]
[349664399,1737363037795,-866.85468385,0.0001804,2]
[349664400,1737363037808,-8806.8748,0.0001804,2]
[349664401,1737363037823,-7585.60039176,0.0001804,2]
[349664403,1737363037832,-520.90684177,0.00019768,2]
[349664405,1737363037842,-591.49,0.00019768,2]
[349664407,1737363037851,-1124.11,0.00019768,2]
[349664409,1737363037861,-500.0,0.00019768,2]
[349664411,1737363037870,-470.89276647,0.00019768,2]
[349664413,1737363037885,-29.10723353,0.00019768,2]
[349664414,1737363037894,-227.19155443,0.00019768,2]
[349664415,1737363037907,-1078.99844557,0.00019768,2]
[349664416,1737363037917,-182.6274,0.00019768,2]
[349664417,1737363037928,-411.7126,0.00019768,2]
[349664418,1737363037937,-956.0874,0.00019768,2]
[349664419,1737363037956,-2017.9126,0.00019768,2]
[349664420,1737363037965,-632.59,0.00019768,2]
[349664421,1737363037979,-510.97,0.00019768,2]
[349664422,1737363037989,-652.26,0.00019768,2]
[349664423,1737363038002,-500.0,0.00019768,2]
[349664424,1737363038012,-500.0,0.00019768,2]
[349664425,1737363038022,-500.0,0.00019768,2]
[349664426,1737363038031,-532.67,0.00019768,2]
[349664427,1737363038041,-500.0,0.00019768,2]
[349664428,1737363038050,-500.0,0.00019768,2]
[349664429,1737363038059,-912.85,0.00019768,2]
[349664430,1737363038068,-500.0,0.00019768,2]
[349664431,1737363038077,-500.0,0.00019768,2]
[349664432,1737363038087,-500.0,0.00019768,2]
[349664433,1737363038097,-500.0,0.00019768,2]
[349664434,1737363038106,-629.85,0.00019768,2]
[349664435,1737363038116,-500.0,0.00019768,2]
[349664436,1737363038125,-807.06,0.00019768,2]
[349664437,1737363038135,-500.0,0.00019768,2]
[349664438,1737363038144,-500.0,0.00019768,2]
[349664439,1737363038155,-500.0,0.00019768,2]
[349664440,1737363038164,-500.0,0.00019768,2]
[349664441,1737363038173,-234.45010399,0.00019768,2]
[349664442,1737363038183,-500.0,0.00019768,2]
[349664443,1737363038192,-500.0,0.00019768,2]
[349664444,1737363038333,-500.0,0.00019768,2]
[349664445,1737363038343,-502.98,0.00019768,2]
[349664446,1737363038352,-500.0,0.00019768,2]
[349664447,1737363038361,-424.30940062,0.00019768,2]
[349664448,1737363038371,-607.13,0.00019768,2]
[349664449,1737363038380,-500.0,0.00019768,2]
[349664450,1737363038390,-500.0,0.00019768,2]
[349664451,1737363038399,-504.37,0.00019768,2]
[349664452,1737363038408,-500.0,0.00019768,2]
[349664453,1737363038418,-500.0,0.00019768,2]
[349664454,1737363038427,-500.0,0.00019768,2]
[349664455,1737363038437,-500.0,0.00019768,2]
[349664456,1737363038446,-673.66,0.00019768,2]
[349664457,1737363038456,-500.0,0.00019768,2]
[349664458,1737363038466,-1056.02,0.00019768,2]
[349664459,1737363038479,-507.52,0.00019768,2]
[349664460,1737363038488,-500.0,0.00019768,2]
[349664461,1737363038497,-975.51,0.00019768,2]
[349664462,1737363038507,-500.0,0.00019768,2]
[349664463,1737363038518,-669.83,0.00019768,2]
[349664464,1737363038528,-2011.24,0.00019768,2]
[349664465,1737363038537,-500.0,0.00019768,2]
[349664466,1737363038546,-500.0,0.00019768,2]
[349664467,1737363038555,-580.07645975,0.00019768,2]
[349664468,1737363038565,-156.78,0.00019817,2]
[349664469,1737363038575,-897.51731213,0.00019827,2]
[349664470,1737363038585,-275.53006832,0.00019841,2]
[349664471,1737363038594,-184.52,0.00019843,2]
[349664472,1737363038603,-150.87349606,0.0001986,2]
[349664473,1737363038612,-300.0,0.000199,7]
[349664474,1737363038622,-500.0,0.00019941,2]
[349664475,1737363038631,-823.37,0.00019941,2]
[349664476,1737363038641,-2255.65,0.00019941,2]
[349664477,1737363038651,-500.0,0.00019941,2]
[349664478,1737363038660,-895.75,0.00019941,2]
[349664479,1737363038670,-1246.79,0.00019941,2]
[349664480,1737363038679,-1392.06,0.00019941,2]
[349664481,1737363038688,-500.0,0.00019941,2]
[349664482,1737363038698,-1000.0,0.00019941,2]
[349664483,1737363038707,-500.0,0.00019941,2]
[349664484,1737363038716,-500.0,0.00019941,2]
[349664485,1737363038725,-1881.51,0.00019941,2]
[349664486,1737363038734,-946.5,0.00019941,2]
[349664487,1737363038743,-471.69034001,0.00019942,2]
[349664488,1737363038753,-500.0,0.00019942,2]
[349664489,1737363038762,-500.0,0.00019942,2]
[349664490,1737363038771,-444.15735437,0.00019942,2]
[349664491,1737363038780,-500.0,0.00019942,2]
[349664492,1737363038789,-500.0,0.00019942,2]
[349664493,1737363038798,-500.0,0.00019942,2]
[349664494,1737363038807,-500.0,0.00019942,2]
[349664495,1737363038816,-500.0,0.00019942,2]
[349664496,1737363038825,-657.65,0.00019942,2]
[349664497,1737363038834,-831.93,0.00019942,2]
[349664498,1737363038843,-880.05,0.00019942,2]
[349664499,1737363038853,-500.0,0.00019942,2]
[349664500,1737363038862,-500.0,0.00019942,2]
[349664501,1737363038871,-500.0,0.00019942,2]
[349664502,1737363038881,-500.0,0.00019942,2]
[349664503,1737363038890,-500.0,0.00019942,2]
[349664504,1737363038900,-500.0,0.00019942,2]
[349664505,1737363038909,-610.89,0.00019942,2]
[349664506,1737363038918,-500.0,0.00019942,2]
[349664507,1737363038928,-563.45,0.00019942,2]
[349664508,1737363038937,-550.94,0.00019942,2]
[349664509,1737363038946,-695.1,0.00019942,2]
[349664510,1737363038956,-729.0,0.00019942,2]
[349664511,1737363038965,-554.01,0.00019942,2]
[349664512,1737363038974,-500.0,0.00019942,2]
[349664513,1737363038983,-500.0,0.00019942,2]
[349664514,1737363038992,-500.0,0.00019942,2]
[349664515,1737363039001,-500.0,0.00019942,2]
[349664516,1737363039011,-500.0,0.00019942,2]
[349664517,1737363039020,-500.0,0.00019942,2]
[349664518,1737363039030,-500.0,0.00019942,2]
[349664519,1737363039038,-500.0,0.00019942,2]
[349664520,1737363039048,-686.1,0.00019942,2]
[349664521,1737363039057,-500.0,0.00019942,2]
[349664522,1737363039066,-500.0,0.00019942,2]
[349664523,1737363039075,-500.0,0.00019942,2]
[349664524,1737363039084,-500.0,0.00019942,2]
[349664525,1737363039093,-500.0,0.00019942,2]
[349664526,1737363039107,-620.45,0.00019942,2]
[349664527,1737363039116,-500.0,0.00019942,2]
[349664528,1737363039125,-500.0,0.00019942,2]
[349664529,1737363039134,-500.0,0.00019942,2]
[349664530,1737363039144,-500.0,0.00019942,2]
[349664531,1737363039155,-500.0,0.00019942,2]
[349664532,1737363039164,-500.0,0.00019942,2]
[349664533,1737363039174,-678.78,0.00019942,2]
[349664534,1737363039183,-500.0,0.00019942,2]
[349664535,1737363039192,-598.56896618,0.00019942,2]
[349664536,1737363039202,-500.0,0.00019942,2]
[349664537,1737363039212,-500.0,0.00019942,2]
[349664538,1737363039222,-500.0,0.00019942,2]
[349664539,1737363039234,-500.0,0.00019942,2]
[349664540,1737363039244,-500.0,0.00019942,2]
[349664541,1737363039255,-500.0,0.00019942,2]
[349664542,1737363039265,-500.0,0.00019942,2]
[349664543,1737363039275,-500.0,0.00019942,2]
[349664544,1737363039285,-515.43,0.00019942,2]
[349664545,1737363039294,-500.0,0.00019942,2]
[349664546,1737363039303,-500.0,0.00019942,2]
[349664547,1737363039313,-500.0,0.00019942,2]
[349664548,1737363039322,-500.0,0.00019942,2]
[349664549,1737363039331,-500.0,0.00019942,2]
[349664550,1737363039341,-733.41,0.00019942,2]
[349664551,1737363039350,-500.0,0.00019942,2]
[349664552,1737363039360,-968.92,0.00019942,2]
[349664553,1737363039369,-500.0,0.00019942,2]
[349664554,1737363039379,-500.0,0.00019942,2]
[349664555,1737363039389,-500.0,0.00019942,2]
[349664556,1737363039398,-674.13,0.00019942,2]
[349664557,1737363039412,-500.0,0.00019942,2]
[349664558,1737363039422,-500.0,0.00019942,2]
[349664559,1737363039431,-150.87349606,0.00020005,2]
[349664561,1737363039441,-797.56,0.0002004,2]
[349664564,1737363039451,-666.76,0.0002004,2]
[349664565,1737363039461,-500.0,0.0002004,2]
[349664566,1737363039474,-566.1,0.0002004,2]
[349664567,1737363039484,-1063.01,0.0002004,2]
[349664568,1737363039493,-940.48,0.0002004,2]
[349664569,1737363039503,-1223.01,0.0002004,2]
[349664570,1737363039514,-500.0,0.0002004,2]
[349664571,1737363039524,-1300.76,0.0002004,2]
[349664572,1737363039533,-500.0,0.0002004,2]
[349664573,1737363039544,-500.0,0.0002004,2]
[349664574,1737363039554,-710.11,0.0002004,2]
[349664576,1737363039563,-862.14,0.0002004,2]
[349664577,1737363039572,-1496.93,0.0002004,2]
[349664578,1737363039581,-2075.45,0.0002004,2]
[349664579,1737363039591,-917.13,0.0002004,2]
[349664580,1737363039600,-500.0,0.0002004,2]
[349664581,1737363039609,-1154.25,0.0002004,2]
[349664583,1737363039618,-500.0,0.0002004,2]
[349664585,1737363039627,-500.0,0.0002004,2]
[349664587,1737363039636,-710.4,0.0002004,2]
[349664589,1737363039646,-636.11,0.0002004,2]
[349664590,1737363039659,-500.0,0.0002004,2]
[349664591,1737363039669,-500.0,0.0002004,2]
[349664592,1737363039678,-500.0,0.0002004,2]
[349664593,1737363039688,-500.0,0.0002004,2]
[349664594,1737363039697,-1951.55,0.0002004,2]
[349664595,1737363039706,-1012.5,0.0002004,2]
[349664596,1737363039716,-570.28756149,0.0002004,2]
[349664597,1737363039725,-500.0,0.00020041,2]
[349664598,1737363039734,-571.24,0.00020041,2]
[349664599,1737363039743,-500.0,0.00020041,2]
[349664600,1737363039752,-1519.56,0.00020041,2]
[349664601,1737363039760,-500.0,0.00020041,2]
[349664602,1737363039770,-421.120757,0.00020041,2]
[349664603,1737363039779,-500.0,0.00020041,2]
[349664604,1737363039787,-500.0,0.00020041,2]
[349664605,1737363039796,-1023.7,0.00020041,2]
[349664606,1737363039806,-200.0,0.00020041,2]
[349664607,1737363039815,-500.0,0.00020041,2]
[349664608,1737363039824,-724.64055934,0.00020041,2]
[349664609,1737363039866,-452.12944066,0.00020041,2]
[349664610,1737363039875,-500.0,0.00020041,2]
[349664611,1737363039885,-500.0,0.00020041,2]
[349664612,1737363039894,-1090.53,0.00020041,2]
[349664613,1737363039905,-898.168223,0.00020041,2]
[349664614,1737363039915,-500.0,0.00020041,2]
[349664615,1737363039924,-500.0,0.00020041,2]
[349664616,1737363039933,-500.0,0.00020041,2]
[349664617,1737363039943,-521.42126601,0.00020041,2]
[349664618,1737363039952,-500.0,0.00020041,2]
[349664619,1737363039961,-500.0,0.00020041,2]
[349664620,1737363039971,-949.9,0.00020041,2]
[349664621,1737363039980,-500.0,0.00020041,2]
[349664622,1737363039989,-500.0,0.00020041,2]
[349664623,1737363039998,-500.0,0.00020041,2]
[349664624,1737363040008,-834.92,0.00020041,2]
[349664625,1737363040017,-500.0,0.00020041,2]
[349664626,1737363040026,-829.28,0.00020041,2]
[349664627,1737363040035,-500.0,0.00020041,2]
[349664628,1737363040044,-500.0,0.00020041,2]
[349664629,1737363040054,-637.29034875,0.00020041,2]
[349664630,1737363040063,-500.0,0.00020041,2]
[349664631,1737363040072,-500.0,0.00020041,2]
[349664632,1737363040082,-515.23561721,0.00020041,2]
[349664633,1737363040091,-1130.9,0.00020041,2]
[349664634,1737363040100,-500.0,0.00020041,2]
[349664635,1737363040109,-500.0,0.00020041,2]
[349664636,1737363040118,-528.92,0.00020041,2]
[349664637,1737363040127,-701.64,0.00020041,2]
[349664638,1737363040137,-500.0,0.00020041,2]
[349664639,1737363040146,-500.0,0.00020041,2]
[349664640,1737363040158,-1051.63,0.00020041,2]
[349664641,1737363040167,-1920.11,0.00020041,2]
[349664642,1737363040178,-10.32836461,0.00020041,2]
[349664643,1737363040337,-500.0,0.00019766,2]
[349664644,1737363040346,-500.0,0.0002004,2]
[349664645,1737363040356,-489.67163539,0.00020041,2]
[349664646,1737363040365,-318.1071676,0.00020041,2]
[349664647,1737363040376,-181.8928324,0.00020041,2]
[349664648,1737363040385,-147.74521616,0.00020041,2]
[349664649,1737363040396,-1685.86478384,0.00020041,2]
[349664650,1737363040406,-500.0,0.00020041,2]
[349664651,1737363040416,-500.0,0.00020041,2]
[349664652,1737363040426,-500.0,0.00020041,2]
[349664653,1737363040435,-199.86021616,0.00020041,2]
[349664654,1737363040447,-300.13978384,0.00020041,2]
[349664655,1737363040456,-613.36,0.00020041,2]
[349664657,1737363040467,-500.0,0.00020041,2]
[349664658,1737363040477,-187.81021616,0.00020041,2]
[349664659,1737363040493,-1071.74978384,0.00020041,2]
[349664660,1737363040502,-500.0,0.00020041,2]
[349664661,1737363040514,-528.9340158,0.00020041,2]
[349664662,1737363040523,-500.0,0.00020041,2]
[349664663,1737363040533,-2931.87,0.00020041,2]
[349664664,1737363040543,-500.0,0.00020041,2]
[349664665,1737363040553,-184.86190612,0.00020041,2]
[349664666,1737363040571,-500.0,0.00020041,2]
[349664667,1737363040583,-500.0,0.00020041,2]
[349664668,1737363040592,-500.0,0.00020041,2]
[349664669,1737363040602,-605.23886177,0.00020041,2]
[349664670,1737363040612,-508.51517809,0.00020041,2]
[349664671,1737363040622,-925.65,0.00020041,2]
[349664672,1737363040631,-500.0,0.00020041,2]
[349664673,1737363040641,-416.65349249,0.00020041,2]
[349664700,1737363042657,-500.0,0.00019766,2]
[349664702,1737363042667,-2096.08,0.00019767,2]
[349664704,1737363042677,-203.77354976,0.000199,2]
[349664706,1737363042688,-500.0,0.0002004,2]
[349664708,1737363042698,-96.46512503,0.00020041,2]
[349664710,1737363042707,-500.0,0.00020041,2]
[349664712,1737363042717,-500.0,0.00020041,2]
[349664713,1737363042726,-500.0,0.00020041,2]
[349664714,1737363042736,-495.9109477,0.00020041,2]
[349664715,1737363042747,-4.0890523,0.00020041,2]
[349664716,1737363042759,-500.0,0.00020041,2]
[349664717,1737363042768,-500.0,0.00020041,2]
[349664718,1737363042778,-106.57778521,0.00020041,2]
[349664719,1737363042793,-393.42221479,0.00020041,2]
[349664720,1737363042803,-629.87778521,0.00020041,2]
[349664721,1737363042818,-565.71221479,0.00020041,2]
[349664722,1737363042828,-617.45795111,0.00020041,2]
[349664723,1737363042838,-261.05787205,0.00020041,2]
[349664724,1737363042847,-684.31,0.00020041,2]
[349664725,1737363042857,-500.0,0.00020041,2]
[349664726,1737363042866,-1702.9,0.00020041,2]
[349664727,1737363042879,-2096.08,0.00020041,2]
[349664728,1737363042889,-500.0,0.00020042,2]
[349664729,1737363042899,-500.0,0.00020042,2]
[349664730,1737363042911,-500.0,0.00020042,2]
[349664731,1737363042921,-500.0,0.00020042,2]
[349664732,1737363042932,-500.0,0.00020042,2]
[349664733,1737363042942,-500.0,0.00020042,2]
[349664734,1737363042951,-500.0,0.00020042,2]
[349664735,1737363042961,-500.0,0.00020042,2]
[349664736,1737363042970,-500.0,0.00020042,2]
[349664737,1737363042979,-500.0,0.00020042,2]
[349664738,1737363042988,-563.18,0.00020042,2]
[349664739,1737363042998,-500.0,0.00020042,2]
[349664740,1737363043008,-500.0,0.00020042,2]
[349664741,1737363043018,-500.0,0.00020042,2]
[349664742,1737363043028,-500.0,0.00020042,2]
[349664743,1737363043037,-500.0,0.00020042,2]
[349664744,1737363043046,-500.0,0.00020042,2]
[349664745,1737363043055,-687.1,0.00020042,2]
[349664746,1737363043065,-686.91,0.00020042,2]
[349664747,1737363043075,-500.0,0.00020042,2]
[349664749,1737363043085,-813.2,0.00020042,2]
[349664751,1737363043095,-500.0,0.00020042,2]
[349664753,1737363043104,-500.0,0.00020042,2]
[349664755,1737363043114,-500.0,0.00020042,2]
[349664757,1737363043123,-670.09196214,0.00020042,2]
[349664759,1737363043136,-167.59803786,0.00020042,2]
[349664762,1737363043146,-630.4,0.00020042,2]
[349664765,1737363043157,-700.25,0.00020042,2]
[349664767,1737363043168,-500.0,0.00020042,2]
[349664769,1737363043177,-638.14,0.00020042,2]
[349664771,1737363043187,-500.0,0.00020042,2]
[349664773,1737363043197,-628.67,0.00020042,2]
[349664774,1737363043206,-626.22,0.00020042,2]
[349664775,1737363043216,-500.0,0.00020042,2]
[349664776,1737363043226,-518.59,0.00020042,2]
[349664777,1737363043236,-500.0,0.00020042,2]
[349664778,1737363043246,-500.0,0.00020042,2]
[349664779,1737363043256,-500.0,0.00020042,2]
[349664780,1737363043266,-239.00286224,0.00020042,2]
[349664781,1737363043275,-1091.51,0.00020042,2]
[349664782,1737363043286,-2229.3,0.00020042,2]
[349664783,1737363043296,-500.0,0.00020042,2]
[349664785,1737363043305,-500.0,0.00020042,2]
[349664787,1737363043315,-500.0,0.00020042,2]
[349664789,1737363043324,-140.3190999,0.00020042,2]
[349664791,1737363043335,-864.58262599,0.00020042,2]
[349665042,1737363045596,-500.0,0.00019766,2]
[349665045,1737363045605,-500.0,0.00019766,2]
[349665048,1737363045615,-523.63,0.00019766,2]
[349665051,1737363045624,-386.027361,0.00019766,2]
[349665054,1737363045633,-500.0,0.00019768,2]
[349665057,1737363045643,-500.0,0.0002004,2]
[349665060,1737363045655,-500.0,0.0002004,2]
[349665063,1737363045664,-523.63,0.0002004,2]
[349665066,1737363045675,-2085.33827411,0.00020042,2]
[349665069,1737363045684,-591.49,0.00020042,2]
[349665072,1737363045693,-1124.11,0.00020042,2]
[349665075,1737363045703,-500.0,0.00020042,2]
[349665078,1737363045712,-1306.19,0.00020042,2]
[349665081,1737363045721,-594.34,0.00020042,2]
[349665083,1737363045730,-2974.0,0.00020042,2]
[349665085,1737363045739,-632.59,0.00020042,2]
[349665087,1737363045748,-510.97,0.00020042,2]
[349665089,1737363045758,-652.26,0.00020042,2]
[349665091,1737363045767,-500.0,0.00020042,2]
[349665093,1737363045776,-500.0,0.00020042,2]
[349665095,1737363045785,-500.0,0.00020042,2]
[349665097,1737363045794,-532.67,0.00020042,2]
[349665099,1737363045803,-912.85,0.00020042,2]
[349665101,1737363045812,-500.0,0.00020042,2]
[349665103,1737363045821,-500.0,0.00020042,2]
[349665105,1737363045830,-807.06,0.00020042,2]
[349665107,1737363045840,-597.45316965,0.00020042,2]
[349665109,1737363045849,-500.0,0.00020042,2]
[349665111,1737363045858,-500.0,0.00020042,2]
[349665113,1737363045867,-219.97213749,0.00020042,2]
[349665115,1737363045877,-500.0,0.00020042,2]
[349665117,1737363045886,-500.0,0.00020042,2]
[349665119,1737363045896,-500.0,0.00020042,2]
[349665121,1737363045905,-502.98,0.00020042,2]
[349665123,1737363045914,-500.0,0.00020042,2]
[349665125,1737363045923,-607.13,0.00020042,2]
[349665127,1737363045932,-500.0,0.00020042,2]
[349665129,1737363045941,-500.0,0.00020042,2]
[349665131,1737363045950,-500.0,0.00020042,2]
[349665133,1737363045960,-500.0,0.00020042,2]
[349665135,1737363045969,-649.0,0.00020042,2]
[349665137,1737363045978,-500.0,0.00020042,2]
[349665139,1737363045988,-673.66,0.00020042,2]
[349665141,1737363045997,-1056.02,0.00020042,2]
[349665143,1737363046006,-507.52,0.00020042,2]
[349665145,1737363046015,-975.51,0.00020042,2]
[349665147,1737363046024,-500.0,0.00020042,2]
[349665149,1737363046033,-669.83,0.00020042,2]
[349665151,1737363046042,-2011.24,0.00020042,2]
[349665153,1737363046051,-500.0,0.00020042,2]
[349665155,1737363046060,-500.0,0.00020042,2]
[349665157,1737363046071,-500.0,0.00020042,2]
[349665159,1737363046081,-275.53006826,0.0002007,2]
[349665161,1737363046090,-897.51731213,0.00020086,2]
[349665163,1737363046099,-203.7735497,0.00020122,2]
[349665165,1737363046108,-5470.95,0.00020145,2]
[349665167,1737363046117,-150.87349606,0.00020151,2]
[349665169,1737363046126,-848.52512752,0.0002018,2]
[349665171,1737363046139,-193.58117083,0.00020214,2]